Cogmind - Beta 17 @@@ ROGUE MODE // 2026.07.13 @ 18:15:56 Player: Hadza Result: Core melted Performance ------------- Evolutions (2) 1000 Regions Visited (5) 1000 Robots Destroyed (39) 195 Value Destroyed (1191) 1191 Prototype IDs (23) 460 Alien Tech Used (0) 0 Bonus (227) 227 TOTAL SCORE: 4073 Bonus ------- High Alert Combat Kills 46 Aligned with FarCom 300 Friendly Fire -119 Cogmind --------- Core Integrity 0/550 Matter 235/300 Energy 27/240 System Corruption 3% Temperature Critical (683) Movement Treading (240) Ox1 Location -8/Materials Parts ------- > --- POWER (1) -------- Nuclear Core > --- PROPULSION (4) --- Medium Treads Medium Treads Medium Treads > --- UTILITY (4) ------ Huge Storage Unit PSU Rigger > --- WEAPON (2) ------- Heavy Ion Cannon Guided Plasma Cannon > --- INVENTORY (25) --- Structural Scanner Targeting Computer Light Armor Plating Beamcaster Light Assault Rifle Peak State ------------ > --- POWER ------------ Improved Ion Engine > --- PROPULSION ------- Medium Treads Medium Treads Medium Treads Medium Treads > --- UTILITY ---------- Improved Heat Sink Huge Storage Unit PSU Rigger > --- WEAPON ----------- Heavy Ion Cannon Heavy Ion Cannon > --- INVENTORY -------- Nuclear Core Medium Treads Medium Treads Medium Treads Medium Treads Heat Sink Structural Scanner Light Armor Plating Beamcaster Heavy Ion Cannon Heavy Ion Cannon Guided Plasma Cannon Light Assault Rifle [Rating: 42] Favorites ----------- Power Ion Engine Engine Ion Engine Power Core Nuclear Core Propulsion Medium Treads Treads Medium Treads Wheel Wheel Utility Heat Sink Device Heat Sink Storage Huge Storage Unit Weapon Light Assault Rifle Energy Gun EM Pulse Gun Energy Cannon Heavy Ion Cannon Ballistic Gun Light Assault Rifle Build | -11 -10 -10 -10 -9 -8 ------- Run | Yrd Mat Min Exi Min Mat Slots Evolved 4 | . . . . . 4 Power . | . . . . . . Propulsion 2 | . . . . . 2 Utility 2 | . . . . . 2 Weapon . | . . . . . . Parts Attached 38 | 6 2 9 1 2 18 Power 6 | 1 . 1 . 1 3 Engine 5 | 1 . 1 . 1 2 Core 1 | . . . . . 1 Reactor . | . . . . . . Propulsion 12 | 2 . 2 . . 8 Treads 10 | 2 . . . . 8 Leg . | . . . . . . Wheel 2 | . . 2 . . . Hover . | . . . . . . Flight . | . . . . . . Utility 11 | 1 2 4 1 . 3 Device 6 | . 1 3 . . 2 Storage 5 | 1 1 1 1 . 1 Processor . | . . . . . . Hackware . | . . . . . . Protection . | . . . . . . Artifact . | . . . . . . Weapon 9 | 2 . 2 . 1 4 Energy Gun 1 | . . 1 . . . Energy Cannon 5 | . . . . 1 4 Ballistic Gun 3 | 2 . 1 . . . Ballistic Cannon . | . . . . . . Launcher . | . . . . . . Special Weapon . | . . . . . . Impact Weapon . | . . . . . . Slashing Weapon . | . . . . . . Piercing Weapon . | . . . . . . Special Melee Weapon . | . . . . . . Unidentified Prototypes . | . . . . . . Parts Lost 16 | . . 5 . . 11 Power 3 | . . 1 . . 2 Propulsion 7 | . . 2 . . 5 Utility 2 | . . 1 . . 1 Weapon 4 | . . 1 . . 3 Highest Loss Streak 10 | . . 3 . . 10 To Critical Strikes . | . . . . . . Average Backups 5 | 2 2 3 6 7 11 Power . | 1 1 . 1 1 . Propulsion . | . . . . . 3 Utility 1 | . . . 2 4 2 Weapon 2 | 1 1 1 2 2 4 Tool/Special . | . . . . . . Unused Backups 6 | . . 1 . . 5 Power 2 | . . 1 . . 1 Propulsion . | . . . . . . Utility 3 | . . . . . 3 Weapon 1 | . . . . . 1 Tool/Special . | . . . . . . Average Slot Usage (%) 86 | . 84 84 100 100 83 Engine 12 | . 14 14 14 14 7 Treads 17 | . 28 9 . . 31 Wheel 7 | . . 7 28 28 1 Device 15 | . 1 23 14 14 15 Storage 7 | . 11 1 14 14 9 Energy Gun 7 | . . 13 14 14 1 Energy Cannon 4 | . . . . 14 16 Ballistic Gun 13 | . 28 14 14 . . Peak Build Rating 42 | 6 6 9 9 15 42 Average Rating 14 | 4 5 6 8 15 38 On Entrance 7 | . 6 6 7 9 15 Avg Prop Armor Cover (%) . | . . . . . . Naked Turns . | . . . . . . Heaviest Build 106 | 10 85 14 29 38 106 Greatest Support 112 | 40 40 40 20 20 112 Greatest Overweight (x) 2 | . 2 2 1 1 1 Average Overweight (x) . | . 1 . . 1 . Largest Inventory Capacity 25 | 8 25 8 15 15 25 Average Capacity 12 | 6 18 5 9 15 21 Most Carried 14 | 5 3 5 8 8 14 Average Carried 5 | 2 2 3 6 7 11 Final Capacity 25 | 8 5 8 15 15 25 Final Carried 8 | 2 2 5 8 7 5 Class Distribution -------------------- 79% | Mutant 20% | Scavenger-Mutant Dominant Class ---------------- Mutant | -10/Materials Mutant | -10/Mines Scavenger-Mutant | -10/Exiles Mutant | -9/Mines Mutant | -8/Materials Resources | -11 -10 -10 -10 -9 -8 ----------- Run | Yrd Mat Min Exi Min Mat Matter Collected 722 | 253 65 157 . 38 209 Remotely . | . . . . . . Salvage Created 1418 | . 188 215 . . 1015 Parts 78 | . 9 13 . . 56 Haulers Intercepted . | . . . . . . Recyclers Shooed . | . . . . . . Parts Field Recycled . | . . . . . . Retrieved Matter . | . . . . . . Parts Self-Destructed . | . . . . . . Prevented . | . . . . . . Parts Restored . | . . . . . . Kills | -11 -10 -10 -10 -9 -8 ------- Run | Yrd Mat Min Exi Min Mat Combat Hostiles Destroyed 34 | . 6 8 . . 20 Guns 14 | . 6 8 . . . Cannons 18 | . . . . . 18 AOE 1 | . . . . . 1 Classes Destroyed 10 | . 2 1 . . 7 Worker 1 | . . . . . 1 Builder 3 | . . . . . 3 Recycler 1 | . . . . . 1 Operator 1 | . . . . . 1 Swarmer 12 | . 3 5 . . 4 Grunt 14 | . 3 1 . . 10 Brawler 1 | . . . . . 1 Sentry 4 | . . . . . 4 Hunter 1 | . . . . . 1 Assembled 2 | . . 2 . . . Thug 1 | . . 1 . . . Best Kill Streak 9 | . 3 3 . . 9 Combat Bots Only 9 | . 3 3 . . 9 Max Kills in Single Turn 2 | . 1 1 . . 2 Gunslinging . | . . . . . . Exploded 1 | . . . . . 1 Melee . | . . . . . . Uniques/NPCs Destroyed . | . . . . . . Combat | -11 -10 -10 -10 -9 -8 -------- Run | Yrd Mat Min Exi Min Mat Hostile Shots Fired 306 | . 52 50 . . 204 Missed 73 | . 14 12 . . 47 Hits 233 | . 38 38 . . 157 Melee 4 | . . 3 . . 1 Projectile 229 | . 38 35 . . 156 Critical Strikes 6 | . . . . . 6 Damage Taken 3415 | . 392 377 . 4 2642 Core 732 | . 85 60 . . 587 Absorbed by Shields . | . . . . . . Core Remaining (%) 71 | 100 . . . 42 . Volleys Fired 120 | . 30 27 . . 63 Largest 2 | . 2 2 . . 2 Hottest 130 | . 40 60 . . 130 Shots Fired 233 | . 60 54 . . 119 Gun 114 | . 60 54 . . . Cannon 119 | . . . . . 119 Launcher . | . . . . . . Special . | . . . . . . Kinetic 95 | . 60 35 . . . Thermal 119 | . . . . . 119 Explosive . | . . . . . . Electromagnetic 19 | . . 19 . . . Robot Hit Streak 7 | . 6 7 . . 6 Robot Miss Streak 5 | . 3 5 . . 3 Penetration Max . | . . . . . . Secondary Targets 1 | . . 1 . . . Max Gunslinging Chain 1 | . . 1 . . . Shots Hit Robots 126 | . 38 23 . . 65 Core Hits 57 | . 15 13 . . 29 Critical Kills 1 | . . . . . 1 Critical Parts Destroyed 1 | . 1 . . . . Critical Strikes 2 | . 1 . . . 1 Meltdown 1 | . . . . . 1 Destroy 1 | . 1 . . . . Melee Attacks . | . . . . . . Impact . | . . . . . . Slashing . | . . . . . . Piercing . | . . . . . . Sneak Attacks . | . . . . . . Combat Hostiles . | . . . . . . Follow-up Attacks . | . . . . . . Damage Inflicted 2615 | . 308 310 . 9 1988 Guns 565 | . 295 270 . . . Cannons 1937 | . . . . . 1937 Explosions 40 | . . 40 . . . Melee . | . . . . . . Ramming 73 | . 13 . . 9 51 Kinetic 410 | . 295 115 . . . Thermal 1977 | . . 40 . . 1937 Explosive . | . . . . . . Electromagnetic 155 | . . 155 . . . Impact . | . . . . . . Slashing . | . . . . . . Piercing . | . . . . . . Highest Corruption 10 | . . 10 10 10 3 Average Corruption 9 | . . 9 10 10 3 Corruption Purged . | . . . . . . Corruption Blocked . | . . . . . . Effects 20 | . . 9 7 4 . Message Errors 1 | . . . 1 . . Matter Fused 4 | . . 2 . 2 . Heat Flow Errors 4 | . . 1 2 1 . Energy Discharges 1 | . . 1 . . . Data Loss (minor) 3 | . . 2 1 . . Data Loss (major) 4 | . . . 3 1 . Alerts 3 | . . 3 . . . Overload Shots . | . . . . . . Overflow Damage 47 | . . . . . 47 Projectiles 45 | . . . . . 45 Explosions . | . . . . . . Melee 2 | . . . . . 2 Knockbacks . | . . . . . . Impact . | . . . . . . Kinetic . | . . . . . . Secondary . | . . . . . . Self-Inflicted Damage 4 | . . . . 4 . Shots . | . . . . . . Rammed 4 | . 1 . . 1 2 Targets Rammed 4 | . 1 . . 1 2 Kicked . | . . . . . . Crushed . | . . . . . . Highest Temperature 683 | . 12 121 179 180 683 Average Temperature 145 | . 7 35 87 105 164 Received Heat Transfer 1320 | . 117 42 . . 1161 Effects 22 | . . . . . 22 Shutdowns 3 | . . . . . 3 Energy Bleed 4 | . . . . . 4 Interference 2 | . . . . . 2 Matter Decay 2 | . . . . . 2 Short Circuit 1 | . . . . . 1 Damage (minor) 4 | . . . . . 4 Damage (major) 3 | . . . . . 3 Damage (core) 3 | . . . . . 3 Siege Activations . | . . . . . . Martial Activations . | . . . . . . Shielding Activations . | . . . . . . Robots Disrupted . | . . . . . . Combat Hostiles . | . . . . . . Robots Corrupted 1 | . . . . . 1 Combat Hostiles . | . . . . . . Parts Fried 3 | . . . . . 3 Impact Corruptions 1 | . . . . . 1 Robots Melted 1 | . . . . . 1 Combat Hostiles 1 | . . . . . 1 Parts Melted 5 | . . . . . 5 Heat Transferred 2763 | . . 50 . . 2713 Parts Sabotaged . | . . . . . . Parts Stolen . | . . . . . . Parts Stripped . | . . . . . . Power Chain Reactions 1 | . . 1 . . . Alert | -11 -10 -10 -10 -9 -8 ------- Run | Yrd Mat Min Exi Min Mat Maximum Alert Level 2 | . . . . . 2 Low Security (%) 93 | 100 100 100 . 100 74 Level 1 3 | . . . . . 12 Level 2 3 | . . . . . 12 Level 3 . | . . . . . . Level 4 . | . . . . . . Level 5 . | . . . . . . High Security . | . . . . . . Max Security . | . . . . . . Peak Influence 526 | . 98 57 . . 526 Initial 28 | . . 28 . . . Average 38 | . 19 6 . . 123 Influence Increases 1147 | . 186 163 . . 798 Destroy 0b10 Robot/C 640 | . 120 120 . . 400 Destroy 0b10 Robot/NC 30 | . . . . . 30 Destroy Leader 150 | . 30 30 . . 90 Allied During Kill 10 | . . 10 . . . Successful Hack 21 | . 21 . . . . Disable Machine 45 | . . . . . 45 Anti-Garrison Action 150 | . . . . . 150 Destroy Structure 41 | . . 3 . . 38 Lose Combat Pursuer 60 | . 15 . . . 45 Influence Decreases 637 | . 112 186 51 . 288 Entered New Map 97 | . . 46 51 . . Time Decay 412 | . 112 112 . . 188 Lost Part 128 | . . 28 . . 100 Squads Dispatched 7 | . 1 . . . 6 Investigation 1 | . 1 . . . . Extermination . | . . . . . . Reinforcement 2 | . . . . . 2 Assault 2 | . . . . . 2 Garrison 2 | . . . . . 2 Intercept . | . . . . . . Searches Triggered . | . . . . . . Construction Impeded . | . . . . . . Haulers Reinforced . | . . . . . . Active Scanning Responses . | . . . . . . Cargo Convoy Interrupts . | . . . . . . Stealth | -11 -10 -10 -10 -9 -8 --------- Run | Yrd Mat Min Exi Min Mat Distress Signals 6 | . 3 . . . 3 Communications Jammed . | . . . . . . Distress Signals . | . . . . . . Times Spotted 59 | . 13 10 . . 36 Peak Tracking Total 7 | . 4 3 . . 7 Tactical Retreats 3 | . 1 . . . 2 Traps | -11 -10 -10 -10 -9 -8 ------- Run | Yrd Mat Min Exi Min Mat Traps Triggered 1 | . . . . . 1 Indirectly . | . . . . . . Trap Hack Attempts . | . . . . . . Triggered . | . . . . . . Disarmed . | . . . . . . Reprogrammed . | . . . . . . Reused . | . . . . . . Traps Extracted . | . . . . . . Installed . | . . . . . . Triggered . | . . . . . . Objects Rigged 4 | . . . . . 4 Exploded 2 | . . . . . 2 Time Bombs Activated 2 | . . . . . 2 Exploded 2 | . . . . . 2 Machines | -11 -10 -10 -10 -9 -8 ---------- Run | Yrd Mat Min Exi Min Mat Machines Disabled 4 | . . . . . 4 Max in Single Turn 1 | . . . . . 1 Garrison Access 1 | . . . . . 1 Machines Repaired . | . . . . . . Machines Dismantled . | . . . . . . Machines Sabotaged . | . . . . . . Overloaded Fab Kills . | . . . . . . Hacking | -11 -10 -10 -10 -9 -8 --------- Run | Yrd Mat Min Exi Min Mat Machines Accessed 3 | . 2 . 1 . . Terminals 2 | . 2 . . . . Fabricators . | . . . . . . Repair Stations . | . . . . . . Recycling Units . | . . . . . . Scanalyzers . | . . . . . . Garrison Access . | . . . . . . Total Hacks 6 | . 5 . 1 . . Successful 3 | . 2 . 1 . . Failed 3 | . 3 . . . . Catastrophic 2 | . 2 . . . . Database Lockouts . | . . . . . . Manual 3 | . 2 . 1 . . Terminals 5 | . 5 . . . . Fabricators . | . . . . . . Repair Stations . | . . . . . . Recycling Units . | . . . . . . Scanalyzers . | . . . . . . Garrison Access . | . . . . . . Terminal Hacks 3 | . 2 . 1 . . Branch Access Points 1 | . 1 . . . . Hauler Manifests 1 | . 1 . . . . Proto ID Catalog 1 | . . . 1 . . Fabricator Hacks . | . . . . . . Repair Station Hacks . | . . . . . . Recycling Unit Hacks . | . . . . . . Scanalyzer . | . . . . . . Garrison Access Hacks . | . . . . . . Unauthorized Hacks . | . . . . . . Terminals . | . . . . . . Fabricators . | . . . . . . Repair Stations . | . . . . . . Recycling Units . | . . . . . . Scanalyzers . | . . . . . . Garrison Access . | . . . . . . Data Cores Recovered . | . . . . . . Used . | . . . . . . Hacking Detections 2 | . 2 . . . . Full Trace Events 2 | . 2 . . . . Feedback Events . | . . . . . . Feedback Blocked . | . . . . . . Robot Schematics Acquired . | . . . . . . Robots Built . | . . . . . . Authchips . | . . . . . . Time . | . . . . . . Total Robot Build Rating . | . . . . . . Part Schematics Acquired . | . . . . . . Parts Built . | . . . . . . Authchips . | . . . . . . Time . | . . . . . . Total Part Build Rating . | . . . . . . Part Studies Acquired . | . . . . . . Parts Repaired . | . . . . . . Time . | . . . . . . Parts Recycled . | . . . . . . Recycled Matter . | . . . . . . Retrieved Matter . | . . . . . . Retrieved Components . | . . . . . . Parts Scanalyzed . | . . . . . . Part Schematics Acquired . | . . . . . . Parts Damaged . | . . . . . . Bothacking | -11 -10 -10 -10 -9 -8 ------------ Run | Yrd Mat Min Exi Min Mat Used RIF Installer . | . . . . . . Robots Hacked . | . . . . . . Non-combat . | . . . . . . Combat . | . . . . . . Robot Hacks Applied . | . . . . . . Relay Couplers Released 2 | . . . . . 2 Machine Destruction 2 | . . . . . 2 Fabnet Peak Effective % . | . . . . . . Robots Rewired . | . . . . . . Allies Hacked . | . . . . . . Hacks Repelled . | . . . . . . Allies | -11 -10 -10 -10 -9 -8 -------- Run | Yrd Mat Min Exi Min Mat Total Allies 2 | . . 2 . . . Largest Group 2 | . . 2 . . . Highest-Rated Group 51 | . . 51 . . . Highest-Rated Ally 31 | . . 31 . . . Total Orders . | . . . . . . Ally Attacks 4 | . . 4 . . . Total Damage 22 | . . 22 . . . Kills . | . . . . . . Allies Corrupted . | . . . . . . Allies Melted . | . . . . . . Intel | -11 -10 -10 -10 -9 -8 ------- Run | Yrd Mat Min Exi Min Mat Active Infowar (turns) 171 | . . 171 . . . Terrain 171 | . . 171 . . . Robot Analysis Total . | . . . . . . Derelict Logs Recovered 1 | . . 1 . . . Drone Launches . | . . . . . . Drone Recoveries . | . . . . . . Exploration | -11 -10 -10 -10 -9 -8 ------------- Run | Yrd Mat Min Exi Min Mat Turns Passed 2567 | 58 580 997 201 140 591 Spaces Moved 1468 | 36 199 635 240 143 215 Core 14 | 10 . 4 . . . Treads 614 | 26 199 214 . . 175 Legs . | . . . . . . Wheels 840 | . . 417 240 143 40 Hover . | . . . . . . Flight . | . . . . . . Fastest Speed 50 | 50 160 80 80 95 95 Average Speed 126 | 129 241 107 81 95 147 Slowest Speed 320 | 160 320 160 95 95 160 Overloaded Moves . | . . . . . . Propulsion Burnouts . | . . . . . . Robots Hopped . | . . . . . . Potential Cave-ins . | . . . . . . Cave-ins Triggered . | . . . . . . Exploration Rate (%) 46 | 4 44 98 60 44 29 Regions Visited 5 Branch Regions 3 Pre-discovered Areas 1 | . . 1 . . . Known Exits Taken 1 | . 1 . . . . Unknown Exits Taken 4 | 1 . 1 1 1 . Scrap Searched 2 | . . 1 . 1 . Spaces Dug . | . . . . . . Terrain Destroyed 43 | . . 3 . . 40 Melee . | . . . . . . Projectile 40 | . . . . . 40 AOE 3 | . . 3 . . . Terrain Rammed . | . . . . . . Walls Destroyed . | . . . . . . Machines Disabled . | . . . . . . Actions | -11 -10 -10 -10 -9 -8 --------- Run | Yrd Mat Min Exi Min Mat Total 1959 | 47 249 902 243 146 372 Wait 262 | . 14 217 . . 31 Move 1463 | 35 198 634 239 142 215 Hop . | . . . . . . Pick Up 44 | 6 2 12 3 . 21 Fast Attach 2 | 2 . . . . . Attach 29 | 4 1 6 . . 18 Detach 1 | . . . . . 1 Swap 11 | . 1 3 1 2 4 Drop 17 | . 2 3 . 1 11 Fire 120 | . 30 27 . . 63 Melee . | . . . . . . Ram 1 | . . . . 1 . Kick . | . . . . . . Crush 3 | . 1 . . . 2 Escape Stasis . | . . . . . . Rewire . | . . . . . . Trap 6 | . . . . . 6 Miscellaneous . | . . . . . . Route ------- -11/Scrapyard -10/Materials -10/Mines (discovered 3 exits: [*Mat x2] / *Exi) -10/Exiles -9/Mines -8/Materials History --------- Turn | Location | Event 9 | -11/Scrapyard | Discovered new exit (range 16) 59 | -11/Scrapyard | Entered Materials 310 | -10/Materials | Build established: Mutant 493 | -10/Materials | Identified exit to Mines 639 | -10/Materials | Entered Mines 695 | -10/Mines | Core integrity fell below 50% 732 | -10/Mines | Lost 3 parts (1p1n1w) 871 | -10/Mines | Assembled infested the area 876 | -10/Mines | Assisted by a Guerilla fighting off Assembled 1236 | -10/Mines | System corruption reached 10% 1310 | -10/Mines | Learned location of Zion (-6) 1335 | -10/Mines | Discovered new exit (range 15) 1592 | -10/Mines | Discovered new exit (range 15) 1633 | -10/Mines | Deemed a non-threat by the Exiles lab entrance 1633 | -10/Mines | Discovered new exit (range 5) 1636 | -10/Mines | Entered Exiles 1656 | -10/Exiles | Met 8R-AWN 1669 | -10/Exiles | Met EX-HEX 1687 | -10/Exiles | Build established: Scavenger-Mutant 1694 | -10/Exiles | Met EX-BIN 1705 | -10/Exiles | Aligned with FarCom system 1706 | -10/Exiles | Given EX-Vault access code 1725 | -10/Exiles | Opened EX-Vault 1730 | -10/Exiles | Found Gui. Plasma Cannon 1734 | -10/Exiles | Found PSU Rigger 1751 | -10/Exiles | Warned to stay clear of 0b10 Research branches 1772 | -10/Exiles | Met EX-DEC 1826 | -10/Exiles | Discovered new exit (range 12) 1837 | -10/Exiles | Stole two prototypes: PSU Rigger, Gui. Plasma Cannon 1837 | -10/Exiles | Entered Mines 1862 | -9/Mines | Met a Derelict bent on vengeance 1921 | -9/Mines | Found a hidden stash of uninstalled traps 1961 | -9/Mines | Discovered new exit (range 16) 1977 | -9/Mines | Entered Materials 1977 | -8/Materials | Evolved 4 slots: Propulsion x2, Utility x2 2277 | -8/Materials | Build established: Mutant 2380 | -8/Materials | Garrison activated, responded to threat 2540 | -8/Materials | Core integrity fell below 50% 2564 | -8/Materials | Core integrity fell below 20% 2569 | -8/Materials | Core melted Last Messages --------------- 02554_ Gui. Plasma Cannon temporarily disabled. 02554_ PSU Rigger temporarily disabled. 02555_ Overheating: Core damaged (-88). 02555_ U-05 Engineer builds a Wall. 02557_ Broken Med. Treads destroyed. 02558_ Overheating: Energy bleed (-7). 02559_ Power failure, Nuclear Core shutdown. 02559_ U-05 Engineer builds a Wall. 02561_ Overheating: Med. Treads damaged (-46). 02561_ Overheating: Med. Treads damaged (-91). 02561_ Overheating: Hvy. Ion Cannon damaged (-38). 02564_ Overheating: Huge Storage Unit damaged (-279). 02564_ U-05 Engineer builds a Wall. 02565_ Overheating: Core damaged (-60). 02566_ Overheating: Med. Treads damaged (-12). 02567_ Overheating: Energy bleed (-4). 02568_ Overheating: Energy bleed (-1). 02569_ Overheating: Core damaged (-60). Map ----- +----------------------------------------------------+ | # """ ##!#?????????????????????????????????? | | # """ ##%#?????????????????????????????????? | | #!! #!%#??????????????"""" ??????????????? | | + !##%#????????????? """ ???????????????? | | ## #########*#???????????? ????????????????? | | ####???????#=#???????????? ?????????????????? | | #??????????#%#??????????? ""?????????????????? | | #???????####%#??????????? """"????????????????? | | ##########"#=############ """""? ?????????????? | | [%% %%= """"" ???????????? | | =[ =! "" ??????????? | | = ??????????? | | #################"""#u % #??????????? | | #?????########??##### ! """ ???????????? | | #??????????????????## """""???????????????? | | #??????????????????##%= """"?? ?????????????? | | #???????????????????# """"" ???????????? | | #???????????????????# """ #??????????? | | #???????????????????# a ^ #??????????? | | ###???????????????????# #??????????? | | ??????????????????????# """ #??????????? | | ??????????????????????# """"" ???????????? | | ??????????????????????# ^ """"" ?????????????? | | ??????????????????????# """" ?????????????? | | ???????????????######## ^ "" #??????????? | | ???????????????# @*%! ;;;????????? | | ???????????????#**[ = =%= g ????????? | | ?????????? ! %+!*%[ % ????????? | | ?????????" !%*===% ?????????? | | ?????????G ! [##[!%= ;###;##;;#+#?????????? | | ??????????" ???#; ;;######## #??#??? ??????????? | | ?????????? ????# ; ????????##??????????????????? | | ???????????????##;g ?????????????????????????????? | | ????????????????## ?????????????????????????????? | | ????????????????? ??????????????????????????????? | | ???????????????? ??????????????????????????????? | | ??????????????? ???????????????????????????????? | | ??????????????? ???????????????????????????????? | | ???????????????? ????????????????????????????????? | | ?????????????????????????????????????????????????? | | ?????????????????????????????????????????????????? | | ?????????????????????????????????????????????????? | | | | | | | | | | | | | | | | | +----------------------------------------------------+ Best States ------------- Heat Dissipation 45 Energy Generation 14 Energy Capacity 265 Matter Stores 300 Matter Capacity 300 Sight Range 16 Terrain Scan Range 16 Terrain Scan Density 10 Evasion (%) 50 Recoil Reduction 4 Item Schematics ----------------- None Robot Schematics ------------------ None Fabricated ------------ Nothing Repaired ---------- Nothing Studied --------- None Alien Tech Used ----------------- None Achievements -------------- Backstab Challenges ------------ None Game ------ Seed ModifiedWardroneProcsplitter Manual? 0 Play Time 00:22:20 Cumulative 17.4 hours Start 2026.07.13 @ 17:55:26 End 2026.07.13 @ 18:15:56 Sessions 1 Manual Loads 0 Difficulty Rogue Special Mode None Game No. 28 Rogue 28 Adventurer 0 Explorer 0 Win Type - Total 0 Types 0/0/0/0/0/0/0/0/0/0 Lore% 5 Gallery% 15 Achievement% 16 Wizard Run 0 Options --------- Layout 1 ASCII 0 Keyboard 0 Movement Mouse Keybinds 0 Fullscreen 1 Font 24/Smallcaps Map View 50x35 Zoom Use 0% Tactical HUD 1 Map Filters NONE Filters NONE Steam 1 RUN: d42d01a2-3d74-450f-a070-8c4b3f3e3948